Cogmind - Beta 16.1 @@@ ROGUE MODE // 2026.04.03 @ 10:12:56 Player: Rainbow Dash Result: Destroyed by FF-H45(R) with Subdweller Beam Cannon Performance ------------- Evolutions (0) 0 Regions Visited (2) 400 Robots Destroyed (33) 165 Value Destroyed (732) 732 Prototype IDs (2) 40 Alien Tech Used (0) 0 Bonus (-31) -31 TOTAL SCORE: 1306 Bonus ------- Friendly Fire -31 Cogmind --------- Core Integrity 0/250 Matter 260/300 Energy 265/265 System Corruption 1% Temperature Cool (9) Movement Treading (160) Location -10/Subcaves Parts ------- > --- POWER (1) -------- Improved Ion Engine > --- PROPULSION (2) --- Light Treads Spiked Treads > --- UTILITY (2) ------ Large Storage Unit Hardened Light Armor Plating > --- WEAPON (2) ------- Shotgun Shotgun > --- INVENTORY (15) --- Subdweller Power Source Light Treads Aluminum Leg Aluminum Leg Aluminum Leg Subdweller Monowheel Hardened Light Armor Plating Hardened Light Armor Plating Hardened Light Armor Plating Autogun Autogun Shotgun Dirty Datajack (20) Datajack Hammer Peak State ------------ > --- POWER ------------ Improved Ion Engine > --- PROPULSION ------- Light Treads Spiked Treads > --- UTILITY ---------- Large Storage Unit Hardened Light Armor Plating > --- WEAPON ----------- Shotgun Shotgun > --- INVENTORY -------- Subdweller Power Source Light Treads Aluminum Leg Aluminum Leg Aluminum Leg Subdweller Monowheel Hardened Light Armor Plating Hardened Light Armor Plating Hardened Light Armor Plating Autogun Autogun Shotgun Dirty Datajack Datajack Hammer [Rating: 14] Favorites ----------- Power Ion Engine Engine Ion Engine Propulsion Light Treads Treads Light Treads Leg Aluminum Leg Utility Large Storage Unit Device Seismic Detector Storage Large Storage Unit Processor Signal Interpreter Protection Hardened Light Armor Plating Weapon Shotgun Energy Gun Small Laser Ballistic Gun Shotgun Impact Weapon Hammer Build | -11 -10 -10 ------- Run | Yrd Mat Sub Slots Evolved . | . . . Power . | . . . Propulsion . | . . . Utility . | . . . Weapon . | . . . Parts Attached 22 | 8 8 6 Power 3 | 1 . 2 Engine 3 | 1 . 2 Core . | . . . Reactor . | . . . Propulsion 6 | 2 2 2 Treads 4 | . 2 2 Leg 2 | 2 . . Wheel . | . . . Hover . | . . . Flight . | . . . Utility 5 | 2 3 . Device 1 | 1 . . Storage 2 | 1 1 . Processor 1 | . 1 . Hackware . | . . . Protection 1 | . 1 . Artifact . | . . . Weapon 8 | 3 3 2 Energy Gun 2 | 2 . . Energy Cannon . | . . . Ballistic Gun 5 | 1 2 2 Ballistic Cannon . | . . . Launcher . | . . . Special Weapon . | . . . Impact Weapon 1 | . 1 . Slashing Weapon . | . . . Piercing Weapon . | . . . Special Melee Weapon . | . . . Unidentified Prototypes . | . . . Parts Lost 4 | . . 4 Power 1 | . . 1 Propulsion 1 | . . 1 Utility 1 | . . 1 Weapon 1 | . . 1 Highest Loss Streak 1 | . . 1 To Critical Strikes . | . . . Average Backups 12 | 3 10 14 Power . | . 1 . Propulsion 3 | 1 3 4 Utility 3 | . 2 3 Weapon 4 | . 3 4 Tool/Special . | . . . Unused Backups 15 | . 3 12 Power 1 | . . 1 Propulsion 3 | . . 3 Utility 5 | . 1 4 Weapon 4 | . 2 2 Tool/Special 2 | . . 2 Average Slot Usage (%) 99 | . 99 100 Engine 14 | . 14 14 Treads 25 | . 21 28 Leg 2 | . 6 . Device 4 | . 11 . Storage 14 | . 14 14 Protection 8 | . 2 13 Energy Gun 3 | . 9 . Ballistic Gun 20 | . 16 23 Impact Weapon 3 | . 2 4 Peak Build Rating 14 | 7 12 14 Average Rating 10 | 5 8 11 On Entrance 5 | . 7 10 Avg Prop Armor Cover (%) . | . . . Naked Turns . | . . . Heaviest Build 38 | 13 36 38 Greatest Support 40 | 20 40 40 Greatest Overweight (x) 3 | 3 . . Average Overweight (x) . | . . . Largest Inventory Capacity 15 | 8 15 15 Average Capacity 14 | 7 13 15 Most Carried 15 | 4 15 15 Average Carried 12 | 3 10 14 Final Capacity 15 | 8 15 15 Final Carried 15 | 4 15 15 Class Distribution -------------------- 100% | Mutant Dominant Class ---------------- Mutant | -10/Materials Mutant | -10/Subcaves Resources | -11 -10 -10 ----------- Run | Yrd Mat Sub Matter Collected 907 | 242 175 490 Remotely . | . . . Salvage Created 931 | 66 332 533 Parts 76 | 11 31 34 Haulers Intercepted 2 | . 2 . Recyclers Shooed 1 | 1 . . Parts Field Recycled . | . . . Retrieved Matter . | . . . Parts Self-Destructed 21 | . . 21 Prevented . | . . . Parts Restored . | . . . Kills | -11 -10 -10 ------- Run | Yrd Mat Sub Combat Hostiles Destroyed 25 | . 11 14 Guns 25 | . 11 14 Classes Destroyed 9 | 1 5 3 Worker 1 | . 1 . Builder 1 | . 1 . Tunneler 4 | 3 1 . Hauler 2 | . 2 . Swarmer 10 | . 9 1 Grunt 4 | . 2 2 Sentry 1 | . . 1 Subdweller 10 | . . 10 Scientist 1 | . . 1 Best Kill Streak 3 | 2 3 2 Combat Bots Only 3 | . 3 2 Max Kills in Single Turn 2 | 1 2 2 Gunslinging 1 | . 1 . Exploded . | . . . Melee . | . . . Uniques/NPCs Destroyed . | . . . Combat | -11 -10 -10 -------- Run | Yrd Mat Sub Hostile Shots Fired 115 | . 48 67 Missed 23 | . 5 18 Hits 92 | . 43 49 Projectile 92 | . 43 49 Damage Taken 1345 | . 381 964 Core 268 | . 76 192 Absorbed by Shields . | . . . Core Remaining (%) 100 | 100 . . Volleys Fired 101 | 7 54 40 Largest 2 | 2 2 2 Hottest 60 | 60 60 46 Shots Fired 200 | 12 108 80 Gun 200 | 12 108 80 Cannon . | . . . Launcher . | . . . Special . | . . . Kinetic 147 | 7 60 80 Thermal 53 | 5 48 . Explosive . | . . . Electromagnetic . | . . . Robot Hit Streak 14 | 6 8 14 Robot Miss Streak 4 | 1 4 3 Penetration Max . | . . . Secondary Targets 4 | . 4 . Max Gunslinging Chain 1 | . 1 . Shots Hit Robots 151 | 9 73 69 Core Hits 61 | 5 22 34 Critical Kills 1 | . . 1 Critical Parts Destroyed 1 | . . 1 Critical Strikes 2 | . . 2 Destroy 2 | . . 2 Melee Attacks 30 | . 6 24 Impact 30 | . 6 24 Slashing . | . . . Piercing . | . . . Sneak Attacks 2 | . 2 . Combat Hostiles . | . . . Follow-up Attacks . | . . . Damage Inflicted 2116 | 81 886 1149 Guns 1957 | 81 727 1149 Cannons . | . . . Explosions . | . . . Melee 143 | . 143 . Ramming 16 | . 16 . Kinetic 1575 | 27 399 1149 Thermal 382 | 54 328 . Explosive . | . . . Electromagnetic . | . . . Impact 143 | . 143 . Slashing . | . . . Piercing . | . . . Highest Corruption 1 | . 1 1 Average Corruption 1 | . 1 1 Corruption Purged . | . . . Corruption Blocked . | . . . Effects 15 | . 2 13 Message Errors 5 | . . 5 Matter Fused 5 | . . 5 Heat Flow Errors 2 | . . 2 Data Loss (minor) 2 | . 1 1 Misfires 1 | . 1 . Overload Shots . | . . . Overflow Damage 25 | . 25 . Projectiles . | . . . Explosions . | . . . Melee 25 | . 25 . Knockbacks 1 | . 1 . Impact 1 | . 1 . Kinetic . | . . . Secondary . | . . . Self-Inflicted Damage . | . . . Shots . | . . . Rammed 1 | . 1 . Targets Rammed 3 | . 3 . Kicked 1 | . 1 . Crushed 1 | . 1 . Highest Temperature 189 | 40 88 189 Average Temperature 28 | 16 23 97 Received Heat Transfer 309 | . 78 231 Siege Activations . | . . . Martial Activations . | . . . Shielding Activations . | . . . Robots Disrupted . | . . . Combat Hostiles . | . . . Robots Corrupted . | . . . Combat Hostiles . | . . . Parts Fried 1 | . 1 . Impact Corruptions 1 | . 1 . Robots Melted . | . . . Combat Hostiles . | . . . Parts Melted 1 | . 1 . Heat Transferred 875 | 125 750 . Parts Sabotaged . | . . . Parts Stolen . | . . . Parts Stripped . | . . . Power Chain Reactions . | . . . Alert | -11 -10 -10 ------- Run | Yrd Mat Sub Maximum Alert Level . | . . . Low Security (%) 100 | 100 100 . Level 1 . | . . . Level 2 . | . . . Level 3 . | . . . Level 4 . | . . . Level 5 . | . . . High Security . | . . . Max Security . | . . . Peak Influence 62 | 10 62 . Initial . | . . . Average 13 | . 14 . Influence Increases 411 | 15 306 90 Destroy 0b10 Robot/C 300 | . 220 80 Destroy 0b10 Robot/NC 40 | 15 25 . Destroy Leader 54 | . 44 10 Destroy Structure 2 | . 2 . Lose Combat Pursuer 15 | . 15 . Influence Decreases 390 | 15 306 69 Time Decay 390 | 15 306 69 Squads Dispatched 2 | . 2 . Investigation 1 | . 1 . Extermination . | . . . Reinforcement 1 | . 1 . Assault . | . . . Garrison . | . . . Intercept . | . . . Searches Triggered . | . . . Construction Impeded . | . . . Haulers Reinforced . | . . . Active Scanning Responses . | . . . Cargo Convoy Interrupts . | . . . Stealth | -11 -10 -10 --------- Run | Yrd Mat Sub Distress Signals 3 | . 3 . Communications Jammed . | . . . Distress Signals . | . . . Times Spotted 42 | . 26 16 Peak Tracking Total 3 | . 3 3 Tactical Retreats 1 | . 1 . Traps | -11 -10 -10 ------- Run | Yrd Mat Sub Traps Triggered 2 | . 2 . Indirectly . | . . . Trap Hack Attempts . | . . . Triggered . | . . . Disarmed . | . . . Reprogrammed . | . . . Reused . | . . . Traps Extracted . | . . . Installed . | . . . Triggered . | . . . Machines | -11 -10 -10 ---------- Run | Yrd Mat Sub Machines Disabled . | . . . Max in Single Turn . | . . . Machines Repaired . | . . . Machines Dismantled . | . . . Machines Sabotaged . | . . . Overloaded Fab Kills . | . . . Hacking | -11 -10 -10 --------- Run | Yrd Mat Sub Machines Accessed 9 | . 8 1 Terminals 6 | . 6 . Fabricators . | . . . Repair Stations . | . . . Recycling Units 2 | . 2 . Scanalyzers . | . . . Garrison Access . | . . . Total Hacks 33 | . 29 4 Successful 21 | . 17 4 Failed 12 | . 12 . Catastrophic 2 | . 2 . Database Lockouts . | . . . Manual 25 | . 25 . Terminals 24 | . 24 . Fabricators . | . . . Repair Stations . | . . . Recycling Units 5 | . 5 . Scanalyzers . | . . . Garrison Access . | . . . Terminal Hacks 9 | . 5 4 Record 4 | . . 4 Robot Analysis 1 | . 1 . Prototype ID Bank 1 | . 1 . Terminal Index 1 | . 1 . Locate Traps 1 | . 1 . Zone Layout 1 | . 1 . Fabricator Hacks . | . . . Repair Station Hacks . | . . . Recycling Unit Hacks 1 | . 1 . Retrieve Components 1 | . 1 . Scanalyzer . | . . . Garrison Access Hacks . | . . . Unauthorized Hacks 11 | . 11 . Terminals 9 | . 9 . Track 3 | . 3 . Botnet 1 | . 1 . Skim 5 | . 5 . Fabricators . | . . . Repair Stations . | . . . Recycling Units 2 | . 2 . Reject 2 | . 2 . Scanalyzers . | . . . Garrison Access . | . . . Data Cores Recovered . | . . . Used . | . . . Hacking Detections 7 | . 7 . Full Trace Events . | . . . Feedback Events . | . . . Feedback Blocked . | . . . Robot Schematics Acquired . | . . . Robots Built . | . . . Authchips . | . . . Time . | . . . Total Robot Build Rating . | . . . Part Schematics Acquired . | . . . Parts Built . | . . . Authchips . | . . . Time . | . . . Total Part Build Rating . | . . . Part Studies Acquired . | . . . Parts Repaired . | . . . Time . | . . . Parts Recycled . | . . . Recycled Matter . | . . . Retrieved Matter . | . . . Retrieved Components 6 | . 6 . Parts Scanalyzed . | . . . Part Schematics Acquired . | . . . Parts Damaged . | . . . Bothacking | -11 -10 -10 ------------ Run | Yrd Mat Sub Used RIF Installer . | . . . Robots Hacked . | . . . Non-combat . | . . . Combat . | . . . Robot Hacks Applied . | . . . Relay Couplers Released . | . . . Fabnet Peak Effective % . | . . . Robots Rewired . | . . . Allies Hacked . | . . . Hacks Repelled . | . . . Allies | -11 -10 -10 -------- Run | Yrd Mat Sub Total Allies . | . . . Largest Group . | . . . Highest-Rated Group . | . . . Highest-Rated Ally . | . . . Total Orders . | . . . Ally Attacks . | . . . Total Damage . | . . . Kills . | . . . Allies Corrupted . | . . . Allies Melted . | . . . Intel | -11 -10 -10 ------- Run | Yrd Mat Sub Active Infowar (turns) 1256 | 18 1146 92 Seismic 1256 | 18 1146 92 Robot Analysis Total 1 | . 1 . Derelict Logs Recovered 3 | . . 3 Drone Launches . | . . . Drone Recoveries . | . . . Exploration | -11 -10 -10 ------------- Run | Yrd Mat Sub Turns Passed 3654 | 140 1357 2157 Spaces Moved 2019 | 84 751 1184 Core 19 | 19 . . Treads 1704 | . 520 1184 Legs 296 | 65 231 . Wheels . | . . . Hover . | . . . Flight . | . . . Fastest Speed 50 | 50 120 160 Average Speed 154 | 126 147 160 Slowest Speed 200 | 200 160 160 Overloaded Moves . | . . . Propulsion Burnouts . | . . . Robots Hopped . | . . . Potential Cave-ins . | . . . Cave-ins Triggered . | . . . Exploration Rate (%) 57 | 4 94 74 Regions Visited 2 Branch Regions 1 Pre-discovered Areas 1 | . . 1 Known Exits Taken . | . . . Unknown Exits Taken 2 | 1 1 . Scrap Searched . | . . . Spaces Dug 2 | . 2 . Terrain Destroyed 2 | . 2 . Melee 2 | . 2 . Projectile . | . . . AOE . | . . . Terrain Rammed . | . . . Walls Destroyed . | . . . Machines Disabled . | . . . Actions | -11 -10 -10 --------- Run | Yrd Mat Sub Total 2318 | 104 891 1323 Wait 95 | . 42 53 Move 2017 | 83 750 1184 Hop . | . . . Pick Up 28 | 6 16 6 Fast Attach 8 | 5 3 . Attach 7 | 2 1 4 Detach 1 | . 1 . Swap 17 | 1 7 9 Drop 11 | . 8 3 Fire 101 | 7 54 40 Melee 30 | . 6 24 Ram . | . . . Kick 1 | . 1 . Crush 2 | . 2 . Escape Stasis . | . . . Rewire . | . . . Trap . | . . . Miscellaneous . | . . . Route ------- -11/Scrapyard -10/Materials (discovered 6 exits: [*Mat x3] / *Min x2 / *Sub) -10/Subcaves (discovered 3 exits: [*Mat x2] / Rec) History --------- Turn | Location | Event 24 | -11/Scrapyard | Discovered new exit (range 15) 141 | -11/Scrapyard | Entered Materials 245 | -10/Materials | Discovered new exit (range 16) 315 | -10/Materials | Build established: Mutant 824 | -10/Materials | Discovered new exit (range 11) 949 | -10/Materials | Discovered new exit (range 13) 994 | -10/Materials | Discovered new exit (range 13) 998 | -10/Materials | Identified exit to Mines 1087 | -10/Materials | Discovered exit to Mines (range 15) 1314 | -10/Materials | Discovered new exit (range 7) 1452 | -10/Materials | Learned 2 Storage zone layouts 1479 | -10/Materials | Learned Materials stockpile data 1498 | -10/Materials | Entered Subcaves 1499 | -10/Subcaves | Approached by a straggling Scientist 1499 | -10/Subcaves | Identified exit to Recycling 1764 | -10/Subcaves | Visited Clippyterm 1768 | -10/Subcaves | Learned Research machine intel 2063 | -10/Subcaves | Learned Materials security intel 2099 | -10/Subcaves | Learned location of Zion (-7) 2099 | -10/Subcaves | Met a Zionite searching for "candidates" 2113 | -10/Subcaves | A swath of the cavern ceiling suddenly collapsed 2808 | -10/Subcaves | Shifting Twisted Machinery released Battle Rifle 2811 | -10/Subcaves | Shifting Twisted Machinery released Sub. Optics 2932 | -10/Subcaves | Core integrity fell below 50% 3060 | -10/Subcaves | Discovered new exit (range 9) 3086 | -10/Subcaves | Shifting Twisted Machinery released Sub. Monowheel 3146 | -10/Subcaves | Discovered new exit (range 14) 3387 | -10/Subcaves | Disturbed a concealed Subdweller 3515 | -10/Subcaves | Learned Materials stockpile data 3642 | -10/Subcaves | Core integrity fell below 20% 3655 | -10/Subcaves | Destroyed by FF-H45(R) with Subdweller Beam Cannon Last Messages --------------- 03317_ Subatomizers dissect the Sub. Monowheel, destroying it. 03387_ LB-Q0K(R) angrily emerges from the Twisted Machinery. 03391_ LB-Q0K(R) affixes Scrap Shield Fragment to Scrap Shield. 03403_ LB-Q0K(R) destroyed. 03408_ Acquired 26 matter. 03411_ Dropped Sub. Optics. 03412_ Acquired Spk. Treads. 03419_ System corrupted: Matter fused (-6). 03474_ S-10 Pest destroyed. 03481_ Y-45 Defender destroyed. 03484_ Dropped Ion Engine. 03487_ Dropped Lgt. Treads. 03487_ Acquired Lgt. Treads. 03489_ Acquired 18 matter. 03491_ Acquired 44 matter. 03494_ Lgt. Armor Plating fries itself beyond repair. 03495_ Beam Rifle fries itself beyond repair. 03515_ Acquired derelict log, extracted data. Data stored: Materials stockpile data. 03628_ System corrupted: Heat flow error (+221). Map ----- +----------------------------------------------------+ | ?????????????????????????????????????????????????? | | ?????????????????????????????????????????????????? | | ?????????????????????????????????????????????????? | | ?????????????????????????????????????????????????? | | ?????????????????????????????????????????????????? | | ???????????????????????????????????????? ??????? | | ???????????????????????????????????????? ????? | | ???????????????????????????????????????? ???? | | ???????????????????????? ????????????? ????? | | ???????????????????????? ????????##?? ?????? | | ???????????????????????? ???###?? ## #?????? | | ????????????????????????? ?## ?? ##????? | | ?????????????????????????? ## ??# ##???# | | ???????????????????????????# #?# #### | | ??????????????????????????## ### | | ????????????????#########?# ## | | ????????????????? #?# ## | | ?????????????????? #?# ## | | ??????????????????? ##?# | | ???????????????????# ### | | ??????????????????## ## #### ##?# | | ?????????????????## #?## ##???# | | ?????????????????# #?# ###### | | ?????????????????# R ##?# ## | | ???????????????#??# R #?## | | ???????????????# ## ###@ ### ## # | | ???? ### #?# ## ### ### | | ???? #?# ### ##### ### | | ???? ##?# ####??# ### | | ?????? ### ## ####??## ########?????#####?## | | ????????????######???????#####???????????????????? | | ?????????????????????????????????????????????????? | | ?????????????????????????????????????????????????? | | ?????????????????????????????????????????????????? | | ?????????????????????????????????????????????????? | | ?????????????????????????????????????????????????? | | ?????????????????????????????????????????????????? | | ?????????????????????????????????????????????????? | | ?????????????????????????????????????????????????? | | ?????????????????????????????????????????????????? | | ?????????????????????????????????????????????????? | | ?????????????????????????????????????????????????? | | ?????????????????????????????????????????????????? | | ?????????????????????????????????????????????????? | | ?????????????????????????????????????????????????? | | | | | | | | | | | +----------------------------------------------------+ Best States ------------- Heat Dissipation 25 Energy Generation 12 Energy Capacity 265 Matter Stores 300 Matter Capacity 300 Sight Range 16 Terrain Scan Density 10 Armor Coverage 150 Evasion (%) 55 Recoil Reduction 2 Item Schematics ----------------- None Robot Schematics ------------------ None Fabricated ------------ Nothing Repaired ---------- Nothing Studied --------- None Alien Tech Used ----------------- None Achievements -------------- None Challenges ------------ None Game ------ Seed SkeletonThunderRailcannon Manual? 0 Play Time 00:31:21 Cumulative 138.4 hours Start 2026.04.03 @ 09:42:22 End 2026.04.03 @ 10:12:56 Sessions 1 Manual Loads 0 Difficulty Rogue Special Mode None Game No. 129 Rogue 84 Adventurer 45 Explorer 0 Win Type - Total 3 Types 2/0/0/1/0/0/0/0/0/0 Lore% 70 Gallery% 58 Achievement% 43 Wizard Run 0 Options --------- Layout 0 ASCII 0 Keyboard 1 Movement Numpad Keybinds 0 Fullscreen 1 Font 24/Smallcaps Map View 76x50 Zoom Use 0% Tactical HUD 1 Map Filters NONE Filters NONE Steam 1 RUN: 7cc70176-7596-4b0c-9ebd-a3a5773a952f